bitfinex-derivatives/quotes_SOLF0:USTF0_20230402
["timestamp","ask_amount","ask_price","bid_price","bid_amount"]
[1680414216345,10.0,21.046,21.037,23.66]
[1680414216546,13.00250316,21.045,21.037,23.66]
[1680414216747,13.00250316,21.044,21.037,23.66]
[1680414216947,11.2552821,21.043,21.037,23.66]
[1680414217147,11.2552821,21.042,21.037,23.66]
[1680414217346,11.2552821,21.041,21.037,23.66]
[1680414217547,11.2552821,21.04,21.037,23.66]
[1680414217748,10.0,21.046,21.037,23.66]
[1680414217948,13.00168124,21.045,21.037,23.66]
[1680414218148,13.00168124,21.044,21.037,23.66]
[1680414218345,11.25447478,21.043,21.037,23.66]
[1680414218542,11.25447478,21.042,21.037,23.66]
[1680414218748,11.25447478,21.041,21.037,23.66]
[1680414218948,11.25447478,21.04,21.037,23.66]
[1680414219150,10.0,21.046,21.037,23.66]
[1680414219347,13.00191342,21.045,21.037,23.66]
[1680414219651,13.00191342,21.044,21.037,23.66]
[1680414219950,11.25470287,21.043,21.037,23.66]
[1680414220150,11.25470287,21.042,21.037,23.66]
[1680414220349,11.25470287,21.041,21.037,23.66]
[1680414220550,11.25470287,21.04,21.037,23.66]
[1680414220750,10.0,21.046,21.037,23.66]
[1680414220951,13.00242903,21.045,21.037,23.66]
[1680414221153,13.00242903,21.044,21.037,23.66]
[1680414221354,11.25520931,21.043,21.037,23.66]
[1680414221554,11.25520931,21.042,21.037,23.66]
[1680414221754,11.25520931,21.045,21.037,23.66]
[1680414221958,13.00242961,21.044,21.037,23.66]
[1680414222159,11.25520931,21.043,21.037,23.66]
[1680414222359,11.25520931,21.042,21.037,23.66]
[1680414222560,11.25520931,21.041,21.037,23.66]
[1680414222758,11.25520931,21.045,21.037,23.66]
[1680414222965,1.74721328,21.044,21.037,23.66]
[1680414223159,11.25520931,21.043,21.037,23.66]
[1680414223659,11.25520931,21.042,21.037,23.66]
[1680414223860,11.25520931,21.041,21.037,23.66]
[1680414224061,11.25520931,21.04,21.037,23.66]
[1680414224258,10.0,21.046,21.037,23.66]
[1680414224558,13.00221311,21.045,21.037,23.66]
[1680414224757,13.00221311,21.044,21.037,23.66]
[1680414225057,11.25499727,21.043,21.037,23.66]
[1680414225258,11.25499727,21.042,21.037,23.66]
[1680414225458,11.25499727,21.041,21.037,23.66]
[1680414225659,11.25499727,21.04,21.037,23.66]
[1680414225855,10.0,21.046,21.037,23.66]
[1680414226062,13.0023557,21.045,21.037,23.66]
[1680414226251,13.0023557,21.044,21.037,23.66]
[1680414226457,11.25513766,21.043,21.037,23.66]
[1680414226653,11.25513766,21.045,21.037,23.66]
[1680414226859,13.00235611,21.044,21.037,23.66]
[1680414227061,11.25513766,21.043,21.035,23.47]
[1680414227361,11.25513766,21.042,21.035,23.47]
[1680414227563,11.25513766,21.041,21.035,23.47]
[1680414227862,11.25513766,21.04,21.035,23.47]
[1680414228062,23.56,21.045,21.035,23.47]
[1680414228264,13.00234724,21.044,21.035,23.47]
[1680414228463,11.25512898,21.043,21.035,23.47]
[1680414228657,23.56,21.045,21.035,23.47]
[1680414228658,11.25512898,21.042,21.035,23.47]
[1680414228864,11.25512898,21.041,21.035,23.47]
[1680414229067,11.25512898,21.04,21.035,23.47]
[1680414229267,23.56,21.045,21.035,23.47]
[1680414229466,13.00228578,21.044,21.035,23.47]
[1680414229671,11.25506859,21.043,21.035,23.47]
[1680414229863,11.25506859,21.042,21.035,23.47]
[1680414230068,11.25506859,21.041,21.035,23.47]
[1680414230269,11.25506859,21.04,21.035,23.47]
[1680414230467,23.56,21.045,21.035,23.47]
[1680414230668,13.00233439,21.044,21.035,23.47]
[1680414230865,11.25511638,21.043,21.035,23.47]
[1680414231069,11.25511638,21.042,21.035,23.47]
[1680414231269,11.25511638,21.041,21.035,23.47]
[1680414231571,11.25511638,21.04,21.035,23.47]
[1680414231770,23.56,21.045,21.035,23.47]
[1680414231971,13.00235176,21.044,21.035,23.47]
[1680414232173,11.25513342,21.043,21.035,23.47]
[1680414232372,11.25513342,21.042,21.035,23.47]
[1680414232572,11.25513342,21.041,21.035,23.47]
[1680414232768,11.25513342,21.044,21.035,23.47]
[1680414232974,11.25513342,21.043,21.035,23.47]
[1680414233277,11.25513342,21.042,21.035,23.47]
[1680414233575,11.25513342,21.041,21.035,23.47]
[1680414233779,11.25513342,21.04,21.035,23.47]
[1680414234076,23.56,21.045,21.035,23.47]
[1680414234276,13.00223731,21.044,21.035,23.47]
[1680414234477,11.25502116,21.043,21.035,23.47]
[1680414234676,11.25502116,21.042,21.035,23.47]
[1680414234879,11.25502116,21.041,21.035,23.47]
[1680414235079,11.25502116,21.04,21.035,23.47]
[1680414235379,23.56,21.045,21.035,23.47]
[1680414235574,13.00217563,21.044,21.035,23.47]
[1680414235779,11.25496056,21.043,21.035,23.47]
[1680414236078,11.25496056,21.042,21.035,23.47]
[1680414236279,11.25496056,21.041,21.035,23.47]
[1680414236481,11.25496056,21.04,21.035,23.47]
[1680414236680,23.56,21.045,21.035,23.47]
[1680414236980,13.0028275,21.044,21.035,23.47]
[1680414237280,11.25560079,21.043,21.035,23.47]
[1680414237481,11.25560079,21.042,21.035,23.47]
[1680414237679,11.25560079,21.041,21.035,23.47]
[1680414237883,11.25560079,21.04,21.035,23.47]
[1680414238082,10.0,21.044,21.035,23.47]
[1680414238379,11.25558492,21.043,21.035,23.47]
[1680414238576,11.25558492,21.042,21.035,23.47]
[1680414238777,11.25558492,21.041,21.035,23.47]
[1680414238976,11.25558492,21.04,21.035,23.47]
[1680414239179,23.56,21.045,21.035,23.47]
[1680414239379,13.00280181,21.044,21.035,23.47]
[1680414239580,11.25557555,21.043,21.035,23.47]
[1680414239774,11.25557555,21.042,21.035,23.47]
[1680414239977,11.25557555,21.041,21.035,23.47]
[1680414240172,11.25557555,21.04,21.035,23.47]
[1680414240377,23.56,21.045,21.035,23.47]
[1680414240577,13.0027636,21.044,21.035,23.47]
[1680414240774,11.25553812,21.043,21.035,23.47]
[1680414240979,11.25553812,21.042,21.035,23.47]
[1680414241177,11.25553812,21.041,21.035,23.47]
[1680414241478,11.25553812,21.04,21.035,23.47]
[1680414241682,23.56,21.045,21.035,23.47]
[1680414241880,13.00270215,21.044,21.034,0.06082937]
[1680414242081,11.25547776,21.043,21.034,0.06082937]
[1680414242281,11.25547776,21.042,21.034,0.06082937]
[1680414242482,11.25547776,21.041,21.034,0.06082937]
[1680414242685,11.25547776,21.04,21.034,0.06082937]
[1680414242989,10.0,21.044,21.033,23.52]
[1680414243284,11.25552469,21.043,21.033,23.52]
[1680414243484,11.25552469,21.042,21.033,23.52]
[1680414243686,11.25552469,21.041,21.033,23.52]
[1680414243889,11.25552469,21.04,21.033,23.52]
[1680414244088,10.0,21.044,21.033,23.52]
[1680414244387,11.25577441,21.043,21.033,23.52]
[1680414244589,11.25577441,21.042,21.033,23.52]
[1680414244785,11.25577441,21.041,21.033,23.52]
[1680414245086,11.25577441,21.04,21.033,23.52]
[1680414245387,23.56,21.045,21.033,23.52]
[1680414245590,13.00295543,21.044,21.033,23.52]
[1680414245787,11.25572642,21.043,21.033,23.52]
[1680414245986,11.25572642,21.042,21.033,23.52]
[1680414246186,11.25572642,21.041,21.033,23.52]
[1680414246486,11.25572642,21.04,21.033,23.52]
[1680414246687,10.0,21.044,21.033,23.52]
[1680414246881,11.25589759,21.043,21.033,23.52]
[1680414247087,11.25589759,21.042,21.033,23.52]
[1680414247287,11.25589759,21.041,21.033,23.52]
[1680414247483,11.25589759,21.04,21.035,18.81]
[1680414247685,18.81,21.042,21.035,18.81]
[1680414247885,11.25584262,21.041,21.035,18.81]
[1680414264902,11.25584262,21.041,21.036,10.0]
[1680414267005,11.25584262,21.041,21.038,18.89]
[1680414267206,11.25584262,21.04,21.038,18.89]
[1680414267401,18.81,21.045,21.038,18.89]
[1680414267603,13.00290831,21.044,21.038,18.89]
[1680414267804,11.25568011,21.043,21.038,18.89]
[1680414268005,11.25568011,21.044,21.038,18.89]
[1680414277014,18.94,21.043,21.036,18.89]
[1680414277213,11.25568011,21.042,21.036,18.89]
[1680414283819,11.25568011,21.042,21.039,18.81]
[1680414284018,11.25568011,21.041,21.039,18.81]
[1680414284213,11.25568011,21.045,21.039,18.81]
[1680414284417,11.25568011,21.044,21.039,18.81]
[1680414284619,11.25568011,21.043,21.039,18.81]
[1680414284818,11.25568011,21.042,21.039,18.81]
[1680414285018,11.25568011,21.041,21.039,18.81]
[1680414285217,11.25568011,21.04,21.039,18.81]
[1680414285413,11.25568011,21.045,21.039,18.81]
[1680414285619,1.74720457,21.044,21.039,18.81]
[1680414285918,11.25568011,21.043,21.039,18.81]
[1680414286317,11.25568011,21.042,21.039,18.81]
[1680414286513,11.25568011,21.041,21.039,18.81]
[1680414286712,11.25568011,21.04,21.039,18.81]
[1680414287318,11.25568011,21.045,21.039,18.81]
[1680414287512,1.74720226,21.044,21.039,18.81]
[1680414287715,11.25568011,21.043,21.039,18.81]
[1680414288220,11.25568011,21.042,21.039,18.81]
[1680414288518,11.25568011,21.041,21.039,18.81]
[1680414288720,11.25568011,21.04,21.039,18.81]
[1680414288918,11.25568011,21.045,21.039,18.81]
[1680414289122,1.74719137,21.044,21.039,18.81]
[1680414289321,11.25568011,21.043,21.039,18.81]
[1680414289818,18.81,21.046,21.039,18.81]
[1680414289819,11.25568011,21.042,21.039,18.81]
[1680414290018,11.25568011,21.041,21.039,18.81]
[1680414290218,11.25568011,21.04,21.039,18.81]
[1680414290413,11.25568011,21.045,21.039,18.81]
[1680414290617,1.74719589,21.044,21.039,18.81]
[1680414290812,11.25568011,21.043,21.039,18.81]
[1680414291320,11.25568011,21.042,21.039,18.81]
[1680414291519,11.25568011,21.041,21.039,18.81]
[1680414291719,11.25568011,21.04,21.039,18.81]
[1680414292120,11.25568011,21.045,21.039,18.81]
[1680414292419,1.74719781,21.044,21.039,18.81]
[1680414292618,11.25568011,21.043,21.039,18.81]
[1680414293119,11.25568011,21.042,21.039,18.81]
[1680414293319,11.25568011,21.041,21.039,18.81]
[1680414293520,11.25568011,21.04,21.039,18.81]
[1680414294121,11.25568011,21.045,21.039,18.81]
[1680414294321,1.74719181,21.044,21.039,18.81]
[1680414294522,11.25568011,21.043,21.039,18.81]
[1680414295021,11.25568011,21.042,21.039,18.81]
[1680414295222,11.25568011,21.041,21.039,18.81]
[1680414295417,11.25568011,21.04,21.039,18.81]
[1680414296321,11.25568011,21.045,21.039,18.81]
[1680414296522,1.74720454,21.044,21.039,18.81]
[1680414296722,11.25568011,21.043,21.039,18.81]
[1680414297023,11.25568011,21.043,21.04,18.81]
[1680414297322,11.25568011,21.042,21.04,18.81]
[1680414297523,11.25568011,21.041,21.04,18.81]
[1680414297723,21.25568011,21.046,21.04,18.81]
[1680414297922,13.00289179,21.045,21.04,18.81]
[1680414298123,13.00289179,21.044,21.04,18.81]
[1680414298322,11.25568011,21.043,21.04,18.81]
[1680414298522,11.25568011,21.042,21.04,18.81]
[1680414298827,11.25568011,21.041,21.04,18.81]
[1680414299217,11.25568011,21.045,21.04,18.81]
[1680414299423,1.74720419,21.044,21.04,18.81]
[1680414299622,11.25568011,21.043,21.04,18.81]
[1680414300122,11.25568011,21.042,21.04,18.81]
[1680414300425,11.25568011,21.041,21.04,18.81]
[1680414301225,11.25568011,21.045,21.04,18.81]
[1680414301427,13.00288575,21.044,21.04,18.81]
[1680414301626,11.25568011,21.043,21.04,18.81]
[1680414301824,11.25568011,21.042,21.04,18.81]
[1680414302025,11.25568011,21.041,21.04,18.81]
[1680414302425,11.25568011,21.045,21.04,18.81]
[1680414302625,1.74720759,21.044,21.04,18.81]
[1680414302825,11.25568011,21.043,21.04,18.81]
[1680414303225,11.25568011,21.042,21.035,0.06103407]
[1680414303527,0.0711039,21.047,21.042,18.89]
[1680414303727,18.94,21.049,21.043,10.0]
[1680414306030,19.00711531,21.052,21.045,18.89]
[1680414317139,18.81,21.051,21.044,18.81]
[1680414318036,18.81,21.051,21.045,10.0]
[1680414319240,18.81,21.051,21.044,18.81]
[1680414321242,18.81,21.051,21.045,10.0]
[1680414326943,18.87711531,21.052,21.045,28.89]
[1680414330448,18.87711531,21.052,21.045,18.89]
[1680414337056,18.94,21.051,21.044,18.81]
[1680414345961,18.81,21.048,21.041,18.95981292]
[1680414347062,18.94,21.047,21.041,0.06981292]
[1680414347262,18.94,21.047,21.039,18.81]
[1680414367685,18.94,21.047,21.04,127.744012]
[1680414370184,10.0,21.05,21.037,0.0696344]
[1680414370185,18.81,21.041,21.037,0.0696344]
[1680414370488,18.81,21.041,21.033,18.89]
[1680414374792,18.81,21.038,21.032,0.06997055]
[1680414375089,18.81,21.038,21.03,18.89]
[1680414376992,18.94,21.037,21.029,18.89]
[1680414377488,23.68,21.038,21.028,0.06912796]
[1680414377889,23.68,21.038,21.028,127.85828541]
[1680414379992,0.06935457,21.041,21.025,48.087]
[1680414379993,0.02231574,21.028,21.025,48.087]
[1680414390797,0.02231574,21.028,21.019,0.06614038]
[1680414391298,0.02231574,21.028,21.02,23.68]
[1680414391597,0.02231574,21.028,21.021,10.0]
[1680414392498,23.63231574,21.028,21.019,0.06614038]
[1680414397103,0.02231574,21.028,21.019,0.06614038]
[1680414406910,23.51,21.03,21.028,0.13665497]
[1680414422021,23.51,21.03,21.019,0.06614038]
[1680414423320,23.68,21.028,21.019,0.06614038]
[1680414426928,23.68,21.029,21.019,0.06614038]
[1680414436234,10.0,21.028,21.019,0.06614038]
[1680414437029,23.68,21.027,21.019,0.06614038]
[1680414437532,10.0,21.026,21.019,0.06614038]
[1680414438731,23.68,21.024,21.012,23.68]
[1680414438932,23.68,21.024,21.013,10.0]
[1680414442335,0.06896943,21.026,21.013,10.0]
[1680414442634,18.97,21.022,21.014,18.97]
[1680414442835,18.97,21.025,21.017,18.97]
[1680414447240,0.06896943,21.026,21.021,18.97]
[1680414447538,18.97,21.028,21.021,18.97]
[1680414452539,23.66,21.03,21.019,23.7]
[1680414452844,1.7484678,21.029,21.019,23.7]
[1680414456944,1.7484678,21.029,21.02,23.7]
[1680414476458,1.7484678,21.029,21.021,10.0]
[1680414477956,1.7484678,21.029,21.021,58.4981]
[1680414479751,1.7484678,21.029,21.021,48.4981]
[1680414480357,9.59232168,21.028,21.021,48.4981]
[1680414480550,1.7484678,21.027,21.021,48.4981]
[1680414481057,23.66,21.03,21.021,48.4981]
[1680414481355,11.34074777,21.029,21.021,48.4981]
[1680414481555,11.34074777,21.028,21.021,48.4981]
[1680414481757,1.74857307,21.027,21.021,48.4981]
[1680414481958,23.66,21.03,21.021,48.4981]
[1680414482158,11.34106626,21.029,21.021,48.4981]
[1680414482457,11.34106626,21.028,21.021,48.4981]
[1680414482657,1.74862279,21.027,21.021,48.4981]
[1680414482858,23.66,21.03,21.021,48.4981]
[1680414483060,11.34096583,21.029,21.021,48.4981]
[1680414483253,11.34096583,21.028,21.021,48.4981]
[1680414483458,11.34096583,21.027,21.021,48.4981]
[1680414483658,1.74860743,21.026,21.021,48.4981]
[1680414483858,23.66,21.03,21.021,48.4981]
[1680414484059,11.34123304,21.029,21.021,48.4981]
[1680414484358,11.34123304,21.028,21.021,48.4981]
[1680414484559,11.34123304,21.027,21.021,48.4981]
[1680414484758,1.74864817,21.026,21.021,48.4981]
[1680414484953,23.66,21.03,21.021,48.4981]
[1680414485153,11.34121269,21.029,21.021,48.4981]
[1680414485358,11.34121269,21.028,21.021,48.4981]
[1680414485561,11.34121269,21.027,21.021,48.4981]
[1680414485760,23.66,21.03,21.021,48.4981]
[1680414485955,11.34119362,21.029,21.021,48.4981]
[1680414486161,11.34119362,21.028,21.021,48.4981]
[1680414486460,11.34119362,21.027,21.021,48.4981]
[1680414486761,23.66,21.03,21.021,48.4981]
[1680414486963,11.34117052,21.029,21.021,48.4981]
[1680414487159,11.34117052,21.028,21.021,48.4981]
[1680414487360,11.34117052,21.027,21.021,48.4981]
[1680414487559,9.59253201,21.026,21.021,48.4981]
[1680414487755,23.66,21.03,21.021,48.4981]
[1680414487955,11.34115038,21.029,21.021,48.4981]
[1680414488160,11.34115038,21.028,21.021,48.4981]
[1680414488461,11.34115038,21.027,21.021,48.4981]
[1680414488663,9.59251504,21.026,21.021,48.4981]
[1680414488964,23.66,21.03,21.021,48.4981]
[1680414489161,11.34113042,21.029,21.021,48.4981]
[1680414489362,11.34113042,21.028,21.021,48.4981]
[1680414489555,11.34113042,21.027,21.021,48.4981]
[1680414489759,9.59249823,21.026,21.021,48.4981]
[1680414489955,23.66,21.03,21.021,48.4981]
[1680414490263,11.34111527,21.029,21.021,48.4981]
[1680414490561,11.34111527,21.028,21.021,48.4981]
[1680414490766,11.34111527,21.027,21.021,48.4981]
[1680414490963,9.59248546,21.026,21.021,48.4981]
[1680414491156,23.66,21.03,21.021,48.4981]
[1680414491359,11.34109639,21.029,21.021,48.4981]
[1680414491557,11.34109639,21.028,21.021,48.4981]
[1680414491761,11.34109639,21.027,21.021,48.4981]
[1680414491961,9.59246954,21.026,21.021,48.4981]
[1680414492163,9.59246954,21.025,21.021,48.4981]
[1680414492364,23.66,21.03,21.021,48.4981]
[1680414492566,11.34108652,21.029,21.021,48.4981]
[1680414492765,11.34108652,21.028,21.021,48.4981]
[1680414492964,11.34108652,21.027,21.021,48.4981]
[1680414493266,9.5924611,21.026,21.021,48.4981]
[1680414493465,9.5924611,21.025,21.021,48.4981]
[1680414493764,23.66,21.03,21.021,48.4981]
[1680414493967,0.06839739,21.031,21.024,23.7]
[1680414494166,0.06839739,21.031,21.025,10.0]
[1680414494368,11.33792065,21.033,21.024,23.7]
[1680414494667,9.58978283,21.032,21.024,23.7]
[1680414494867,23.76217152,21.035,21.024,23.7]
[1680414495059,11.33781817,21.034,21.024,23.7]
[1680414495262,11.33781817,21.033,21.024,23.7]
[1680414495466,9.58969669,21.032,21.024,23.7]
[1680414495661,9.58969669,21.034,21.024,23.7]
[1680414495862,11.33776712,21.033,21.024,23.7]
[1680414496058,9.58965202,21.032,21.024,23.7]
[1680414496264,9.58965202,21.034,21.024,23.7]
[1680414496468,11.33777342,21.033,21.024,23.7]
[1680414496667,9.58965804,21.032,21.024,23.7]
[1680414496870,23.76217152,21.035,21.024,23.7]
[1680414497068,11.33776912,21.034,21.026,23.7]
[1680414497270,11.33776912,21.033,21.026,23.7]
[1680414497470,9.58967061,21.032,21.026,23.7]
[1680414497770,0.06217152,21.035,21.026,23.7]
[1680414497970,1.81030125,21.035,21.026,23.7]
[1680414498169,9.5897418,21.034,21.026,23.7]
[1680414498362,1.74812973,21.033,21.026,23.7]
[1680414498565,9.5897418,21.032,21.026,23.7]
[1680414498867,0.06217152,21.035,21.026,23.7]
[1680414499069,1.81028731,21.035,21.026,23.7]
[1680414499371,9.58966554,21.034,21.026,23.7]
[1680414499570,1.74811579,21.033,21.026,23.7]
[1680414500068,0.06217152,21.035,21.026,23.7]
[1680414500471,11.39991389,21.035,21.026,23.7]
[1680414500670,11.33774237,21.034,21.026,23.7]
[1680414500970,9.58963257,21.033,21.026,23.7]
[1680414501162,0.06217152,21.035,21.026,23.7]
[1680414501366,1.81028105,21.035,21.027,46.2044]
[1680414501566,9.58963257,21.034,21.027,46.2044]
[1680414501968,9.58963257,21.033,21.027,46.2044]
[1680414502169,0.06217152,21.035,21.027,46.2044]
[1680414502667,11.39990599,21.035,21.027,46.2044]
[1680414502972,11.33773447,21.034,21.027,46.2044]
[1680414503173,0.06217152,21.035,21.027,46.2044]
[1680414503671,11.39953283,21.035,21.027,46.2044]
[1680414503867,11.33736131,21.034,21.027,46.2044]
[1680414504065,0.06217152,21.035,21.027,46.2044]
[1680414504567,11.39958624,21.035,21.027,46.2044]
[1680414504764,11.33741472,21.034,21.027,46.2044]
[1680414505072,0.06217152,21.035,21.027,46.2044]
[1680414505466,11.3996151,21.035,21.027,46.2044]
[1680414505670,11.33744358,21.034,21.027,46.2044]
[1680414505872,0.06217152,21.035,21.027,46.2044]
[1680414506370,11.39963227,21.035,21.027,46.2044]
[1680414506573,34.84746075,21.034,21.027,46.2044]
[1680414506871,23.51,21.034,21.027,46.2044]
[1680414507474,10.0,21.033,21.027,46.2044]
[1680414507672,1.7484521,21.032,21.023,23.62]
[1680414507877,11.33996225,21.032,21.023,23.62]
[1680414508075,21.33996225,21.031,21.023,23.62]
[1680414508272,10.0,21.03,21.023,23.62]
[1680414510575,10.0,21.031,21.023,23.62]
[1680414510778,10.0,21.033,21.023,23.62]
[1680414512575,23.51,21.032,21.021,23.77041936]
[1680414512774,10.0,21.031,21.021,23.77041936]
[1680414512974,19.59195496,21.031,21.021,23.77041936]
[1680414513174,10.0,21.031,21.021,23.77041936]
[1680414513876,23.51,21.032,21.021,23.77041936]
[1680414516981,23.7,21.03,21.021,0.07041936]
[1680414517382,18.8,21.029,21.021,19.03041936]
[1680414540703,18.96,21.026,21.021,0.07041936]
[1680414540904,10.0,21.025,21.019,18.92]
[1680414542800,18.96,21.026,21.019,18.92]
[1680414553208,18.8,21.028,21.021,18.92]
[1680414616957,0.06879762,21.029,21.023,18.96]
[1680414617250,18.96,21.031,21.023,18.96]
[1680414635663,18.96,21.031,21.024,10.0]
[1680414636364,18.96,21.031,21.023,18.96]
[1680414647077,18.8,21.032,21.025,18.96]
[1680414647278,9.58953363,21.031,21.025,18.96]
[1680414666785,18.96,21.026,21.021,0.0669554]
[1680414666986,18.96,21.026,21.019,18.96]
[1680414666987,9.58953363,21.025,21.019,18.96]
[1680414667184,9.58953363,21.025,21.018,18.96]
[1680414669488,18.96,21.026,21.018,18.96]
[1680414676994,18.8,21.023,21.016,19.02846682]
[1680414687203,18.96,21.021,21.016,0.06846682]
[1680414687497,18.96,21.021,21.013,18.92]
[1680414697013,18.96,21.022,21.015,18.96]
[1680414717032,18.86696849,21.024,21.016,18.92]
[1680414734644,9.59291663,21.023,21.016,18.92]
[1680414747153,18.8,21.022,21.014,18.92]
[1680414754357,10.0,21.021,21.014,18.92]
[1680414754562,18.8,21.018,21.011,18.98142505]
[1680414776979,18.8,21.019,21.011,18.98142505]
[1680414786990,18.96,21.017,21.011,0.06142505]
[1680414787184,18.96,21.017,21.01,18.96]
[1680414797297,18.96,21.019,21.012,18.92]
[1680414798789,0.06696849,21.024,21.015,18.96]
[1680414799097,0.06696849,21.024,21.016,10.0]
[1680414799291,18.8,21.023,21.016,10.0]
[1680414799494,18.8,21.023,21.015,18.96]
[1680414803706,9.59496623,21.022,21.015,18.96]
[1680414805505,18.8,21.023,21.015,18.96]
[1680414807009,18.96,21.022,21.015,18.96]
[1680414811113,9.59493453,21.021,21.015,18.96]
[1680414817022,9.59493453,21.021,21.014,18.96]
[1680414819621,28.55493453,21.021,21.014,18.96]
[1680414819915,18.96,21.021,21.014,18.96]
[1680414828531,9.59487004,21.02,21.014,18.96]
[1680414836939,28.55487004,21.02,21.013,18.96]
[1680414837142,18.96,21.02,21.013,18.96]
[1680414839137,18.8,21.015,21.012,0.06657937]
[1680414839343,18.96,21.013,21.007,44.453]
[1680414839542,18.96,21.011,21.007,44.453]
[1680414843845,18.96,21.011,21.003,18.92]
[1680414847045,18.96,21.009,21.001,18.92]
[1680414856956,18.8,21.007,21.0,18.96]
[1680414866964,18.96,21.005,20.998,18.96]
[1680414886978,18.96,21.007,20.999,18.92]
[1680414898891,18.96,21.007,21.0,10.0]
[1680414902897,18.96,21.01,21.003,18.96]
[1680414906401,0.07050492,21.012,20.997,10.0]
[1680414906402,18.96,21.008,20.997,10.0]
[1680414906592,18.96,21.008,20.998,127.99359264]
[1680414906790,18.96,21.008,21.001,18.92]
[1680414917009,18.8,21.009,21.001,18.92]
[1680414933618,18.8,21.009,21.002,18.92]
[1680414971845,18.8,21.009,21.003,10.0]
[1680414972050,0.07050492,21.012,21.005,18.96]
[1680414972244,9.66808349,21.012,21.006,10.0]
[1680414972442,9.59757857,21.012,21.006,10.0]
[1680414976945,9.59757857,21.012,21.007,18.96]
[1680414977149,18.96,21.014,21.007,18.96]
[1680414977447,9.59756019,21.013,21.007,18.96]
[1680414984158,9.59756019,21.013,21.008,10.0]
[1680414986963,9.59756019,21.013,21.008,28.96]
[1680414987159,9.59756019,21.012,21.008,28.96]
[1680414987362,18.8,21.015,21.008,18.96]
[1680414987555,9.59747458,21.014,21.008,18.96]
[1680415004273,18.96,21.011,21.004,64.5442]
[1680415010982,18.96,21.011,21.004,18.96]
[1680415016985,18.96,21.01,21.002,18.96]
[1680415019288,45.8411,21.015,21.008,18.92]
[1680415019488,9.59759258,21.014,21.008,18.92]
[1680415020695,9.59759258,21.013,21.008,18.92]
[1680415020991,9.59759258,21.012,21.008,18.92]
[1680415021191,9.59759258,21.011,21.008,18.92]
[1680415021393,18.86518517,21.016,21.008,18.92]
[1680415021592,11.34716841,21.015,21.008,18.92]
[1680415021792,9.59760477,21.014,21.008,18.92]
[1680415021993,9.59760477,21.013,21.008,18.92]
[1680415022186,9.59760477,21.012,21.008,18.92]
[1680415022385,9.59760477,21.011,21.008,18.92]
[1680415022591,18.86518517,21.016,21.008,18.92]
[1680415022793,11.34716877,21.015,21.008,18.92]
[1680415023091,18.86518517,21.016,21.008,18.92]
[1680415023092,9.59760506,21.014,21.008,18.92]
[1680415023291,9.59760506,21.013,21.008,18.92]
[1680415023492,9.59760506,21.012,21.008,18.92]
[1680415023695,9.59760506,21.011,21.008,18.92]
[1680415023996,18.86518517,21.016,21.008,18.92]
[1680415024194,11.34716947,21.015,21.008,18.92]
[1680415024395,9.59760565,21.014,21.008,18.92]
[1680415024597,9.59760565,21.013,21.008,18.92]
[1680415024795,9.59760565,21.012,21.008,18.92]
[1680415024990,9.59760565,21.011,21.008,18.92]
[1680415025190,18.86518517,21.016,21.008,18.92]